Cogmind - Beta 13 @@@ ROGUE MODE // 2024.05.05 @ 14:06:11 Player: Pluto Result: Smashed by cave-in Performance ------------- Evolutions (1) 500 Regions Visited (4) 800 Robots Destroyed (55) 275 Value Destroyed (915) 915 Prototype IDs (2) 40 Alien Tech Used (0) 0 Bonus (0) 0 TOTAL SCORE: 2530 Bonus ------- None Cogmind --------- Core Integrity 0/400 Matter 300/300 Energy 100/100 System Corruption 5% Temperature Cool (0) Movement Walking (190) Ox1 Location -9/Mines Parts ------- > --- POWER (1) -------- (None) > --- PROPULSION (2) --- Aluminum Leg > --- UTILITY (4) ------ Medium Storage Unit Improved Targeting Computer Improved Light Armor Plating > --- WEAPON (2) ------- Hammer Maul > --- INVENTORY (10) --- Improved Ion Engine Light Nuclear Core Aluminum Leg Medium Storage Unit Improved Targeting Computer Improved Light Armor Plating Rocket Launcher Hammer Hammer Peak State ------------ > --- POWER ------------ Light Nuclear Core > --- PROPULSION ------- Carbon-fiber Leg Carbon-fiber Leg > --- UTILITY ---------- Medium Storage Unit Experimental Sensor Array Medium Armor Plating Medium Armor Plating > --- WEAPON ----------- Hammer Hammer > --- INVENTORY -------- Ion Engine Improved Ion Engine Aluminum Leg Aluminum Leg Medium Storage Unit Medium Armor Plating Grenade Launcher Hammer Hammer [Rating: 26] Favorites ----------- Power Ion Engine Engine Ion Engine Power Core Light Nuclear Core Propulsion Aluminum Leg Treads Light Treads Leg Aluminum Leg Utility Medium Storage Unit Device Experimental Sensor Array Storage Medium Storage Unit Processor Improved Targeting Computer Protection Medium Armor Plating Weapon Hammer Energy Gun Medium Laser Ballistic Gun Light Assault Rifle Launcher Rocket Launcher Impact Weapon Hammer Build | -11 -10 -10 -9 -9 ------- Run | Yrd Mat Min Mat Min Slots Evolved 2 | . . . 2 . Power . | . . . . . Propulsion . | . . . . . Utility 2 | . . . 2 . Weapon . | . . . . . Parts Attached 43 | 9 11 8 14 1 Power 9 | 2 2 3 2 . Engine 8 | 2 2 2 2 . Core 1 | . . 1 . . Reactor . | . . . . . Propulsion 10 | 2 3 3 2 . Treads 2 | 2 . . . . Leg 8 | . 3 3 2 . Wheel . | . . . . . Hover . | . . . . . Flight . | . . . . . Utility 16 | 2 4 2 7 1 Device 4 | 1 1 1 1 . Storage 3 | 1 2 . . . Processor 1 | . . . 1 . Hackware . | . . . . . Protection 8 | . 1 1 5 1 Artifact . | . . . . . Weapon 8 | 3 2 . 3 . Energy Gun 2 | 2 . . . . Energy Cannon . | . . . . . Ballistic Gun 1 | 1 . . . . Ballistic Cannon . | . . . . . Launcher 1 | . . . 1 . Special Weapon . | . . . . . Impact Weapon 4 | . 2 . 2 . Slashing Weapon . | . . . . . Piercing Weapon . | . . . . . Special Melee Weapon . | . . . . . Unidentified Prototypes 2 | . . 1 1 . Parts Lost 10 | . 1 . 5 4 Power 2 | . . . 1 1 Propulsion 3 | . . . 2 1 Utility 5 | . 1 . 2 2 Weapon . | . . . . . Highest Loss Streak 4 | . 1 . 2 4 To Critical Strikes . | . . . . . Average Slot Usage (%) 98 | . 97 100 98 88 Engine 10 | . 14 9 9 11 Core 2 | . . 4 1 . Treads 1 | . 5 . . . Leg 23 | . 22 28 21 18 Device 8 | . 10 3 11 . Storage 12 | . 14 14 11 11 Processor 3 | . . . 8 11 Protection 9 | . 2 10 13 14 Energy Gun 2 | . 7 . . . Ballistic Gun 2 | . 7 . . . Impact Weapon 20 | . 12 28 22 22 Naked Turns . | . . . . . Heaviest Build 37 | 14 30 26 37 33 Greatest Support 40 | 40 40 30 30 23 Greatest Overweight (x) 1 | . 1 1 1 1 Average Overweight (x) . | . . . . 1 Largest Inventory Capacity 15 | 8 15 10 10 10 Average Capacity 10 | 7 10 10 10 10 Most Carried 15 | 8 15 10 10 10 Average Carried 9 | 5 9 9 9 9 Final Capacity 10 | 8 10 10 10 10 Final Carried 10 | 8 10 10 10 9 Class Distribution -------------------- 100% | Mutant Dominant Class ---------------- Mutant | -10/Materials Mutant | -10/Mines Mutant | -9/Materials Mutant | -9/Mines Resources | -11 -10 -10 -9 -9 ----------- Run | Yrd Mat Min Mat Min Matter Collected 677 | 309 143 90 135 . Remotely . | . . . . . Salvage Created 1544 | 178 465 167 698 36 Parts 99 | 22 46 8 18 5 Haulers Intercepted 7 | . 2 . 5 . Recyclers Shooed . | . . . . . Parts Field Recycled . | . . . . . Retrieved Matter . | . . . . . Parts Self-Destructed . | . . . . . Prevented . | . . . . . Kills | -11 -10 -10 -9 -9 ------- Run | Yrd Mat Min Mat Min Combat Hostiles Destroyed 28 | . 12 2 11 3 Melee 7 | . 3 1 1 2 Guns 9 | . 9 . . . Classes Destroyed 8 | 3 4 . 1 . Worker 3 | 2 . 1 . . Tunneler 7 | 5 . 1 1 . Hauler 7 | . 2 . 5 . Recycler 3 | 1 1 1 . . Watcher 7 | . 3 . 4 . Swarmer 13 | . 9 . 1 3 Grunt 9 | . 3 2 4 . Sentry 6 | . . . 6 . Best Kill Streak 4 | 4 4 3 2 3 Combat Bots Only 3 | . 3 1 2 3 Max Kills in Single Turn 1 | 1 1 1 1 1 Gunslinging . | . . . . . Exploded . | . . . . . Melee 1 | . 1 1 1 1 Uniques/NPCs Destroyed . | . . . . . Combat | -11 -10 -10 -9 -9 -------- Run | Yrd Mat Min Mat Min Hostile Shots Fired 232 | . 80 19 105 28 Missed 54 | . 21 6 23 4 Damage Taken 2590 | . 503 192 1013 882 Core 610 | . 100 84 222 204 Absorbed by Shields . | . . . . . Core Remaining (%) 63 | 100 . 26 . . Volleys Fired 62 | 19 43 . . . Largest 2 | 2 2 . . . Hottest 70 | 70 70 . . . Shots Fired 124 | 38 86 . . . Gun 124 | 38 86 . . . Cannon . | . . . . . Launcher . | . . . . . Special . | . . . . . Kinetic 62 | 19 43 . . . Thermal 62 | 19 43 . . . Explosive . | . . . . . Electromagnetic . | . . . . . Robot Hit Streak 13 | 5 13 . . . Robot Miss Streak 4 | 2 4 . . . Penetration Max . | . . . . . Secondary Targets 1 | . 1 . . . Max Gunslinging Chain 1 | . 1 . . . Shots Hit Robots 172 | 22 64 18 63 5 Core Hits 49 | 11 28 4 4 2 Critical Kills 1 | . 1 . . . Critical Parts Destroyed 18 | . . 2 15 1 Critical Strikes 27 | 3 6 2 15 1 Burn 8 | 3 5 . . . Smash 19 | . 1 2 15 1 Melee Attacks 170 | . 25 29 107 9 Impact 170 | . 25 29 107 9 Slashing . | . . . . . Piercing . | . . . . . Sneak Attacks 14 | . 1 5 8 . Combat Hostiles . | . . . . . Follow-up Attacks 20 | . 3 3 12 2 Damage Inflicted 4097 | 234 865 604 2247 147 Guns 838 | 234 604 . . . Cannons . | . . . . . Explosions . | . . . . . Melee 3259 | . 261 604 2247 147 Ramming . | . . . . . Kinetic 261 | 72 189 . . . Thermal 577 | 162 415 . . . Explosive . | . . . . . Electromagnetic . | . . . . . Impact 3259 | . 261 604 2247 147 Slashing . | . . . . . Piercing . | . . . . . Highest Corruption . | . . . . . Average Corruption . | . . . . . Corruption Purged . | . . . . . Corruption Blocked . | . . . . . Overload Shots . | . . . . . Overflow Damage 855 | . 29 94 708 24 Projectiles . | . . . . . Explosions . | . . . . . Melee 855 | . 29 94 708 24 Knockbacks 5 | . 1 3 1 . Impact 4 | . 1 2 1 . Kinetic . | . . . . . Secondary 1 | . . 1 . . Self-Inflicted Damage . | . . . . . Shots . | . . . . . Rammed . | . . . . . Targets Rammed . | . . . . . Kicked . | . . . . . Crushed . | . . . . . Highest Temperature 300 | 80 300 12 . . Average Temperature 69 | 31 86 12 . . Received Heat Transfer 546 | . 36 135 375 . Effects 1 | . 1 . . . Energy Bleed 1 | . 1 . . . Siege Activations . | . . . . . Robots Corrupted . | . . . . . Combat Hostiles . | . . . . . Parts Fried 22 | . 2 1 18 1 Impact Corruptions 39 | . 2 4 31 2 Robots Melted . | . . . . . Combat Hostiles . | . . . . . Parts Melted 5 | 1 4 . . . Heat Transferred 2294 | 703 1591 . . . Parts Sabotaged . | . . . . . Parts Stolen . | . . . . . Parts Stripped . | . . . . . Power Chain Reactions . | . . . . . Alert | -11 -10 -10 -9 -9 ------- Run | Yrd Mat Min Mat Min Peak Influence 311 | 40 311 60 261 168 Initial 78 | . 26 . . 78 Average 84 | 21 101 6 131 140 Maximum Alert Level 1 | . 1 . 1 . Low Security (%) 86 | 100 86 100 76 100 Level 1 13 | . 13 . 23 . Level 2 . | . . . . . Level 3 . | . . . . . Level 4 . | . . . . . Level 5 . | . . . . . High Security . | . . . . . Max Security . | . . . . . Squads Dispatched 4 | . 2 1 1 . Investigation 2 | . 1 1 . . Extermination . | . . . . . Reinforcement 2 | . 1 . 1 . Assault . | . . . . . Garrison . | . . . . . Intercept . | . . . . . Searches Triggered . | . . . . . Construction Impeded . | . . . . . Haulers Reinforced . | . . . . . Active Scanning Responses . | . . . . . Cargo Convoy Interrupts . | . . . . . Stealth | -11 -10 -10 -9 -9 --------- Run | Yrd Mat Min Mat Min Distress Signals 5 | . 1 . 4 . Communications Jammed . | . . . . . Distress Signals . | . . . . . Times Spotted 55 | . 20 2 27 6 Peak Tracking Total 6 | . 6 2 4 4 Tactical Retreats 8 | . 1 . 6 1 Traps | -11 -10 -10 -9 -9 ------- Run | Yrd Mat Min Mat Min Traps Triggered 1 | . 1 . . . Indirectly . | . . . . . Trap Hack Attempts . | . . . . . Triggered . | . . . . . Disarmed . | . . . . . Reprogrammed . | . . . . . Reused . | . . . . . Traps Extracted . | . . . . . Installed . | . . . . . Triggered . | . . . . . Machines | -11 -10 -10 -9 -9 ---------- Run | Yrd Mat Min Mat Min Machines Disabled . | . . . . . Max in Single Turn . | . . . . . Machines Repaired . | . . . . . Machines Dismantled . | . . . . . Machines Sabotaged . | . . . . . Overloaded Fab Kills . | . . . . . Hacking | -11 -10 -10 -9 -9 --------- Run | Yrd Mat Min Mat Min Machines Accessed 17 | . 7 3 7 . Terminals 16 | . 7 2 7 . Fabricators . | . . . . . Repair Stations . | . . . . . Recycling Units . | . . . . . Scanalyzers . | . . . . . Garrison Access . | . . . . . Total Hacks 41 | . 19 3 19 . Successful 12 | . 6 2 4 . Failed 29 | . 13 1 15 . Catastrophic 3 | . 2 . 1 . Database Lockouts . | . . . . . Manual 37 | . 17 1 19 . Terminals 40 | . 19 2 19 . Fabricators . | . . . . . Repair Stations . | . . . . . Recycling Units . | . . . . . Scanalyzers . | . . . . . Garrison Access . | . . . . . Terminal Hacks 7 | . 3 2 2 . Open Door 1 | . . 1 . . Branch Access Points 2 | . 1 . 1 . Terminal Index 2 | . 1 . 1 . Dispatch Records 1 | . . 1 . . Zone Layout 1 | . 1 . . . Fabricator Hacks . | . . . . . Repair Station Hacks . | . . . . . Recycling Unit Hacks . | . . . . . Scanalyzer . | . . . . . Garrison Access Hacks . | . . . . . Unauthorized Hacks 5 | . 3 . 2 . Terminals 5 | . 3 . 2 . Botnet 5 | . 3 . 2 . Fabricators . | . . . . . Repair Stations . | . . . . . Recycling Units . | . . . . . Scanalyzers . | . . . . . Garrison Access . | . . . . . Data Cores Recovered . | . . . . . Used . | . . . . . Hacking Detections 14 | . 6 1 7 . Full Trace Events 1 | . . . 1 . Feedback Events . | . . . . . Feedback Blocked . | . . . . . Robot Schematics Acquired . | . . . . . Robots Built . | . . . . . Authchips . | . . . . . Time . | . . . . . Total Robot Build Rating . | . . . . . Part Schematics Acquired . | . . . . . Parts Built . | . . . . . Authchips . | . . . . . Time . | . . . . . Total Part Build Rating . | . . . . . Parts Repaired . | . . . . . Time . | . . . . . Parts Recycled . | . . . . . Recycled Matter . | . . . . . Retrieved Matter . | . . . . . Retrieved Components . | . . . . . Parts Scanalyzed . | . . . . . Part Schematics Acquired . | . . . . . Parts Damaged . | . . . . . Bothacking | -11 -10 -10 -9 -9 ------------ Run | Yrd Mat Min Mat Min Used RIF Installer . | . . . . . Robots Hacked . | . . . . . Non-combat . | . . . . . Combat . | . . . . . Robot Hacks Applied . | . . . . . Relay Couplers Released . | . . . . . Fabnet Peak Effective % . | . . . . . Robots Rewired . | . . . . . Allies Hacked . | . . . . . Hacks Repelled . | . . . . . Allies | -11 -10 -10 -9 -9 -------- Run | Yrd Mat Min Mat Min Total Allies . | . . . . . Largest Group . | . . . . . Highest-Rated Group . | . . . . . Highest-Rated Ally . | . . . . . Total Orders . | . . . . . Ally Attacks . | . . . . . Total Damage . | . . . . . Kills . | . . . . . Allies Corrupted . | . . . . . Allies Melted . | . . . . . Intel | -11 -10 -10 -9 -9 ------- Run | Yrd Mat Min Mat Min Robot Analysis Total . | . . . . . Derelict Logs Recovered 2 | . . 2 . . Drone Launches . | . . . . . Drone Recoveries . | . . . . . Exploration | -11 -10 -10 -9 -9 ------------- Run | Yrd Mat Min Mat Min Turns Passed 5116 | 270 1390 1340 2082 34 Spaces Moved 2509 | 127 734 568 1073 7 Core 6 | 6 . . . . Treads 217 | 121 96 . . . Legs 2286 | . 638 568 1073 7 Wheels . | . . . . . Hover . | . . . . . Flight . | . . . . . Fastest Speed 50 | 50 120 120 120 190 Average Speed 147 | 154 151 133 151 190 Slowest Speed 190 | 160 190 190 190 190 Overloaded Moves . | . . . . . Propulsion Burnouts . | . . . . . Robots Hopped . | . . . . . Cave-ins Triggered 1 | . . . . 1 Exploration Rate (%) 55 | 6 94 100 73 5 Regions Visited 4 Branch Regions 2 Pre-discovered Areas 2 | . . 2 . . Known Exits Taken 2 | . 1 . 1 . Unknown Exits Taken 2 | 1 . 1 . . Scrap Searched 1 | . . 1 . . Spaces Dug 10 | . 4 4 2 . Terrain Destroyed 10 | . 4 4 2 . Melee 10 | . 4 4 2 . Projectile . | . . . . . AOE . | . . . . . Terrain Rammed . | . . . . . Walls Destroyed . | . . . . . Machines Disabled . | . . . . . Actions | -11 -10 -10 -9 -9 --------- Run | Yrd Mat Min Mat Min Total 3536 | 162 904 1106 1349 15 Wait 724 | 1 64 499 160 . Move 2505 | 126 733 567 1072 7 Hop . | . . . . . Pick Up 31 | 7 14 2 8 . Fast Attach 14 | 7 3 1 3 . Attach 8 | . . . 7 1 Detach 3 | . 1 . 2 . Swap 21 | 2 8 7 4 . Drop 29 | . 17 7 5 . Fire 62 | 19 43 . . . Melee 139 | . 21 23 88 7 Ram . | . . . . . Kick . | . . . . . Crush . | . . . . . Escape Stasis . | . . . . . Rewire . | . . . . . Trap . | . . . . . Miscellaneous . | . . . . . Route ------- -11/Scrapyard -10/Materials (discovered 5 exits: *Mat x3 / *Min x2) -10/Mines (discovered 2 exits: *Mat x2) -9/Materials (discovered 3 exits: [*Mat] / *Min x2) -9/Mines History --------- Turn | Location | Event 12 | -11/Scrapyard | Discovered new exit (range 15) 271 | -11/Scrapyard | Entered Materials 328 | -10/Materials | Build established: Mutant 641 | -10/Materials | Discovered new exit (range 15) 719 | -10/Materials | Discovered new exit (range 5) 1084 | -10/Materials | Discovered new exit (range 15) 1419 | -10/Materials | Discovered new exit (range 12) 1421 | -10/Materials | Identified exit to Mines 1453 | -10/Materials | Discovered new exit (range 5) 1661 | -10/Materials | Entered Mines 2294 | -10/Mines | Found a damaged Exp. Sensor Array with a note attached 2299 | -10/Mines | Found Prototype Device 2300 | -10/Mines | Identified Exp. Sensor Array 2322 | -10/Mines | Learned location of Mines (-8) 2380 | -10/Mines | Learned location of Storage (-7) 2519 | -10/Mines | Learned Materials emergency access door positions 2531 | -10/Mines | Met a Derelict shopkeep closing up shop 2733 | -10/Mines | Core integrity fell below 50% 2820 | -10/Mines | Discovered new exit (range 5) 2940 | -10/Mines | Discovered new exit (range 16) 3001 | -10/Mines | Entered Materials 3001 | -9/Materials | Evolved 2 slots: Utility x2 4023 | -9/Materials | Discovered new exit (range 16) 4379 | -9/Materials | Core integrity fell below 50% 4539 | -9/Materials | Identified exit to Mines 5083 | -9/Materials | Entered Mines 5084 | -9/Mines | Assembled infested the area 5089 | -9/Mines | Assisted by a Guerilla fighting off Assembled 5118 | -9/Mines | Crushed by falling debris 5118 | -9/Mines | Smashed by cave-in Last Messages --------------- 05093_ S-10 Pest system terminally corrupted. 05093_ Flight Unit fried. 05096_ HV Slug penetrates Wall. 05098_ S-10 Pest knocked back. 05100_ Maul follow-up attack on S-10 Pest. 05100_ S-10 Pest destroyed. 05107_ BJ-37N(h) destroyed. 05108_ U-05 Engineer builds a Wall. 05109_ Imp. Aluminum Leg destroyed. 05109_ U-05 Engineer destroyed. 05109_ U-05 Engineer lays Concrete. 05110_ U-05 Engineer builds a Wall. 05111_ U-05 Engineer destroyed. 05112_ The unstable cave ceiling collapses. 05117_ Med. Armor Plating destroyed. 05117_ D-53 Grenadier destroyed. 05118_ The unstable cave ceiling collapses. 05118_ Crushed by falling debris. 05118_ Cld. Ion Engine destroyed. 05118_ System corrupted by crushing effect (+5). Map ----- +----------------------------------------------------+ | ??????????????????????????????????????????????? | | ??????????????????????????????????????????????? | | ??????????????????????????????????????????????? | | ??????????????????????????????????????????????? | | ??????????????????????????????????????????????? | | ??????????????????????????????????????????????? | | ??????????????????????????????????????????????? | | ??????????????????????????????????????????????? | | ??????????????????????????????????????????????? | | ??????????????????????????????????????????????? | | ??????????????????????????????????????????????? | | ??????????????????????????????????????????????? | | ??????????????????????????????????????????????? | | ??????????????????????????????????????????????? | | ?????????????????????????????????? #??????????? | | ?????????????????????????????????# #??????????? | | ???????????????????????????????? ##?????????? | | ??????????????????????????????? #?????????? | | ?????????????????????????????? ??????????? | | ???????????????????????##??###r ???????????? | | ??????????????????????## ## # ?????????????? | | ??????????????????##?## ??????????????? | | ?????????????????## # #???????????????? | | ?????????????????# #???????????????? | | ?????????????????# #???????????????? | | ?????????????????# @ #???????????????? | | ?????????????????# d %#???????????????? | | ???????????????# #???????????????? | | ??????????????# #???????????????? | | ??????????????# # # # #???????????????? | | ??????????????#### ######$#???????????????? | | ?????????????????######???????#???????????????? | | ??????????????????????????????????????????????? | | ??????????????????????????????????????????????? | | ??????????????????????????????????????????????? | | ??????????????????????????????????????????????? | | ??????????????????????????????????????????????? | | ??????????????????????????????????????????????? | | ??????????????????????????????????????????????? | | ??????????????????????????????????????????????? | | ??????????????????????????????????????????????? | | ??????????????????????????????????????????????? | | ??????????????????????????????????????????????? | | ??????????????????????????????????????????????? | | ??????????????????????????????????????????????? | | ??????????????????????????????????????????????? | | | | | | | | | +----------------------------------------------------+ Best States ------------- Heat Dissipation 28 Energy Generation 14 Energy Capacity 280 Matter Stores 300 Matter Capacity 300 Sight Range 16 Robot Scan Range 20 Terrain Scan Density 10 Armor Coverage 450 Evasion (%) 55 Targeting Accuracy 6 Recoil Reduction 2 Item Schematics ----------------- None Robot Schematics ------------------ None Fabricated ------------ Nothing Alien Tech Used ----------------- None Achievements -------------- None Challenges ------------ None Game ------ Seed TripodGlidesysCasing Manual? 0 Play Time 00:40:20 Cumulative 22.1 hours Start 2024.05.05 @ 13:25:53 End 2024.05.05 @ 14:06:11 Sessions 1 Manual Loads 0 Difficulty Rogue Special Mode None Game No. 24 Rogue 24 Adventurer 0 Explorer 0 Win Type - Total 0 Types 0/0/0/0/0/0/0/0/0 Lore% 8 Gallery% 22 Achievement% 20 Wizard Run 0 Options --------- Layout 0 ASCII 0 Keyboard 1 Movement Numpad Keybinds 0 Fullscreen 1 Font 24/Smallcaps Map View 76x50 Zoom Use 0% Tactical HUD 1 Map Filters NONE Filters NONE Steam 1 RUN: 889e92e8-942a-4879-9e24-ec80c77cd51c